Cogmind - Beta 14 @@@ ROGUE MODE // 2024.08.07 @ 16:56:42 Player: jimmyl Result: Destroyed by S-10 Pest with Light Assault Rifle Performance ------------- Evolutions (0) 0 Regions Visited (2) 400 Robots Destroyed (17) 85 Value Destroyed (440) 440 Prototype IDs (2) 40 Alien Tech Used (0) 0 Bonus (0) 0 TOTAL SCORE: 965 Bonus ------- None Cogmind --------- Core Integrity 0/250 Matter 260/300 Energy 100/100 System Corruption 0% Temperature Cool (0) Movement Rolling (100) Location -10/Subcaves Parts ------- > --- POWER (1) -------- (None) > --- PROPULSION (2) --- Compact Wheel Compact Wheel > --- UTILITY (2) ------ Medium Storage Unit > --- WEAPON (2) ------- Barrage Gun Slug Cannon > --- INVENTORY (10) --- Improved Ion Engine EM Shotgun Light Assault Rifle Battle Cannon Peak State ------------ > --- POWER ------------ Improved Ion Engine > --- PROPULSION ------- Compact Wheel Compact Wheel > --- UTILITY ---------- Medium Storage Unit > --- WEAPON ----------- EM Shotgun Slug Cannon > --- INVENTORY -------- Improved Ion Engine EM Shotgun Light Assault Rifle Barrage Gun Battle Cannon [Rating: 12] Favorites ----------- Power Improved Ion Engine Engine Improved Ion Engine Propulsion Light Treads Treads Light Treads Leg Aluminum Leg Wheel Compact Wheel Utility Medium Storage Unit Storage Medium Storage Unit Processor Targeting Computer Weapon EM Shotgun Energy Gun EM Shotgun Ballistic Gun Assault Rifle Ballistic Cannon Battle Cannon Build | -11 -10 -10 ------- Run | Yrd Mat Sub Slots Evolved . | . . . Power . | . . . Propulsion . | . . . Utility . | . . . Weapon . | . . . Parts Attached 19 | . 12 7 Power 1 | . 1 . Engine 1 | . 1 . Core . | . . . Reactor . | . . . Propulsion 6 | . 4 2 Treads 4 | . 4 . Leg . | . . . Wheel 2 | . . 2 Hover . | . . . Flight . | . . . Utility 2 | . 2 . Device . | . . . Storage 1 | . 1 . Processor 1 | . 1 . Hackware . | . . . Protection . | . . . Artifact . | . . . Weapon 10 | . 5 5 Energy Gun 7 | . 5 2 Energy Cannon . | . . . Ballistic Gun 1 | . . 1 Ballistic Cannon 2 | . . 2 Launcher . | . . . Special Weapon . | . . . Impact Weapon . | . . . Slashing Weapon . | . . . Piercing Weapon . | . . . Special Melee Weapon . | . . . Unidentified Prototypes . | . . . Parts Lost 6 | . . 6 Power 1 | . . 1 Propulsion 2 | . . 2 Utility 1 | . . 1 Weapon 2 | . . 2 Highest Loss Streak 2 | . . 2 To Critical Strikes . | . . . Average Slot Usage (%) 94 | . 96 92 Engine 13 | . 14 13 Treads 18 | . 21 17 Leg 2 | . 6 . Wheel 5 | . . 9 Storage 14 | . 14 14 Processor 10 | . 11 9 Energy Gun 25 | . 24 26 Ballistic Gun 1 | . 3 . Peak Build Rating 12 | . 11 12 Average Rating 9 | . 9 10 On Entrance 7 | 6 6 10 Naked Turns . | . . . Heaviest Build 27 | 11 23 27 Greatest Support 40 | 20 40 40 Greatest Overweight (x) 1 | . 1 1 Average Overweight (x) . | . . . Largest Inventory Capacity 10 | . 10 10 Average Capacity 9 | . 9 10 Most Carried 7 | . 7 7 Average Carried 5 | . 5 5 Final Capacity 10 | 8 10 10 Final Carried 6 | 6 6 4 Class Distribution -------------------- 100% | Mutant Dominant Class ---------------- Mutant | -10/Materials Mutant | -10/Subcaves Resources | -11 -10 -10 ----------- Run | Yrd Mat Sub Matter Collected 467 | 200 91 176 Remotely . | . . . Salvage Created 542 | . 174 368 Parts 30 | . 16 14 Haulers Intercepted . | . . . Recyclers Shooed . | . . . Parts Field Recycled . | . . . Retrieved Matter . | . . . Parts Self-Destructed 5 | . . 5 Prevented 1 | . . 1 Kills | -11 -10 -10 ------- Run | Yrd Mat Sub Combat Hostiles Destroyed 15 | . 5 10 Guns 10 | . 5 5 Cannons 2 | . . 2 Classes Destroyed 4 | . 3 1 Watcher 2 | . 2 . Swarmer 6 | . 3 3 Grunt 2 | . 2 . Subdweller 7 | . . 7 Best Kill Streak 3 | . 3 2 Combat Bots Only 3 | . 3 2 Max Kills in Single Turn 1 | . 1 1 Gunslinging . | . . . Exploded . | . . . Melee . | . . . Uniques/NPCs Destroyed . | . . . Combat | -11 -10 -10 -------- Run | Yrd Mat Sub Hostile Shots Fired 89 | . 26 63 Missed 21 | . 10 11 Damage Taken 1032 | . 135 897 Core 251 | . 26 225 Absorbed by Shields . | . . . Core Remaining (%) 100 | 100 . . Volleys Fired 52 | . 15 37 Largest 2 | . 2 2 Hottest 90 | . 90 90 Shots Fired 96 | . 29 67 Gun 83 | . 29 54 Cannon 13 | . . 13 Launcher . | . . . Special . | . . . Kinetic 31 | . 11 20 Thermal 10 | . 10 . Explosive . | . . . Electromagnetic 55 | . 8 47 Robot Hit Streak 27 | . 17 27 Robot Miss Streak 3 | . 3 3 Penetration Max . | . . . Secondary Targets 2 | . . 2 Max Gunslinging Chain 1 | . . 1 Shots Hit Robots 70 | . 18 52 Core Hits 27 | . 9 18 Critical Kills . | . . . Critical Parts Destroyed . | . . . Critical Strikes . | . . . Melee Attacks . | . . . Impact . | . . . Slashing . | . . . Piercing . | . . . Sneak Attacks . | . . . Combat Hostiles . | . . . Follow-up Attacks . | . . . Damage Inflicted 1150 | . 286 864 Guns 986 | . 282 704 Cannons 96 | . . 96 Explosions 64 | . . 64 Melee . | . . . Ramming 4 | . 4 . Kinetic 305 | . 98 207 Thermal 107 | . 43 64 Explosive . | . . . Electromagnetic 734 | . 141 593 Impact . | . . . Slashing . | . . . Piercing . | . . . Highest Corruption . | . . . Average Corruption . | . . . Corruption Purged . | . . . Corruption Blocked . | . . . Overload Shots . | . . . Overflow Damage 12 | . . 12 Projectiles . | . . . Explosions 12 | . . 12 Melee . | . . . Knockbacks 1 | . . 1 Impact . | . . . Kinetic 1 | . . 1 Secondary . | . . . Self-Inflicted Damage 63 | . . 63 Shots 1 | . . 1 Rammed 1 | . 1 . Targets Rammed 1 | . 1 . Kicked . | . . . Crushed . | . . . Highest Temperature 150 | . 150 9 Average Temperature 73 | . 76 9 Received Heat Transfer 72 | . 18 54 Siege Activations . | . . . Robots Corrupted 3 | . . 3 Combat Hostiles 3 | . . 3 Parts Fried 8 | . . 8 Impact Corruptions . | . . . Robots Melted . | . . . Combat Hostiles . | . . . Parts Melted 1 | . . 1 Heat Transferred 150 | . 100 50 Parts Sabotaged . | . . . Parts Stolen . | . . . Parts Stripped . | . . . Power Chain Reactions 1 | . . 1 Alert | -11 -10 -10 ------- Run | Yrd Mat Sub Peak Influence 136 | . 136 . Initial . | . . . Average 71 | . 71 . Maximum Alert Level . | . . . Low Security (%) 100 | . 100 . Level 1 . | . . . Level 2 . | . . . Level 3 . | . . . Level 4 . | . . . Level 5 . | . . . High Security . | . . . Max Security . | . . . Squads Dispatched 2 | . 2 . Investigation 1 | . 1 . Extermination . | . . . Reinforcement 1 | . 1 . Assault . | . . . Garrison . | . . . Intercept . | . . . Searches Triggered . | . . . Construction Impeded . | . . . Haulers Reinforced . | . . . Active Scanning Responses . | . . . Cargo Convoy Interrupts . | . . . Stealth | -11 -10 -10 --------- Run | Yrd Mat Sub Distress Signals . | . . . Communications Jammed . | . . . Distress Signals . | . . . Times Spotted 22 | . 9 13 Peak Tracking Total 5 | . 5 3 Tactical Retreats 2 | . . 2 Traps | -11 -10 -10 ------- Run | Yrd Mat Sub Traps Triggered 4 | . 3 1 Indirectly . | . . . Trap Hack Attempts . | . . . Triggered . | . . . Disarmed . | . . . Reprogrammed . | . . . Reused . | . . . Traps Extracted . | . . . Installed . | . . . Triggered . | . . . Machines | -11 -10 -10 ---------- Run | Yrd Mat Sub Machines Disabled . | . . . Max in Single Turn . | . . . Machines Repaired . | . . . Machines Dismantled . | . . . Machines Sabotaged . | . . . Overloaded Fab Kills . | . . . Hacking | -11 -10 -10 --------- Run | Yrd Mat Sub Machines Accessed 2 | . 2 . Terminals 2 | . 2 . Fabricators . | . . . Repair Stations . | . . . Recycling Units . | . . . Scanalyzers . | . . . Garrison Access . | . . . Total Hacks 3 | . 3 . Successful 3 | . 3 . Failed . | . . . Catastrophic . | . . . Database Lockouts . | . . . Manual 1 | . 1 . Terminals 3 | . 3 . Fabricators . | . . . Repair Stations . | . . . Recycling Units . | . . . Scanalyzers . | . . . Garrison Access . | . . . Terminal Hacks 2 | . 2 . Prototype ID Bank 1 | . 1 . Patrol Status 1 | . 1 . Fabricator Hacks . | . . . Repair Station Hacks . | . . . Recycling Unit Hacks . | . . . Scanalyzer . | . . . Garrison Access Hacks . | . . . Unauthorized Hacks 1 | . 1 . Terminals 1 | . 1 . Disrupt 1 | . 1 . Fabricators . | . . . Repair Stations . | . . . Recycling Units . | . . . Scanalyzers . | . . . Garrison Access . | . . . Data Cores Recovered . | . . . Used . | . . . Hacking Detections 1 | . 1 . Full Trace Events . | . . . Feedback Events . | . . . Feedback Blocked . | . . . Robot Schematics Acquired . | . . . Robots Built . | . . . Authchips . | . . . Time . | . . . Total Robot Build Rating . | . . . Part Schematics Acquired . | . . . Parts Built . | . . . Authchips . | . . . Time . | . . . Total Part Build Rating . | . . . Parts Repaired . | . . . Time . | . . . Parts Recycled . | . . . Recycled Matter . | . . . Retrieved Matter . | . . . Retrieved Components . | . . . Parts Scanalyzed . | . . . Part Schematics Acquired . | . . . Parts Damaged . | . . . Bothacking | -11 -10 -10 ------------ Run | Yrd Mat Sub Used RIF Installer . | . . . Robots Hacked . | . . . Non-combat . | . . . Combat . | . . . Robot Hacks Applied . | . . . Relay Couplers Released . | . . . Fabnet Peak Effective % . | . . . Robots Rewired . | . . . Allies Hacked . | . . . Hacks Repelled . | . . . Allies | -11 -10 -10 -------- Run | Yrd Mat Sub Total Allies . | . . . Largest Group . | . . . Highest-Rated Group . | . . . Highest-Rated Ally . | . . . Total Orders . | . . . Ally Attacks . | . . . Total Damage . | . . . Kills . | . . . Allies Corrupted . | . . . Allies Melted . | . . . Intel | -11 -10 -10 ------- Run | Yrd Mat Sub Robot Analysis Total . | . . . Derelict Logs Recovered 1 | . . 1 Drone Launches . | . . . Drone Recoveries . | . . . Exploration | -11 -10 -10 ------------- Run | Yrd Mat Sub Turns Passed 2052 | . 808 1244 Spaces Moved 1072 | 1 272 799 Core . | . . . Treads 587 | . 142 445 Legs 131 | 1 130 . Wheels 354 | . . 354 Hover . | . . . Flight . | . . . Fastest Speed 100 | 120 120 100 Average Speed 138 | 120 141 137 Slowest Speed 240 | 120 240 240 Overloaded Moves . | . . . Propulsion Burnouts . | . . . Robots Hopped . | . . . Cave-ins Triggered . | . . . Exploration Rate (%) 36 | 2 57 51 Regions Visited 2 Branch Regions 1 Pre-discovered Areas . | . . . Known Exits Taken . | . . . Unknown Exits Taken 2 | 1 1 . Scrap Searched 9 | . . 9 Spaces Dug . | . . . Terrain Destroyed 12 | . . 12 Melee . | . . . Projectile 1 | . . 1 AOE 11 | . . 11 Terrain Rammed . | . . . Walls Destroyed . | . . . Machines Disabled . | . . . Actions | -11 -10 -10 --------- Run | Yrd Mat Sub Total 1538 | . 665 873 Wait 382 | . 356 26 Move 1070 | . 271 799 Hop . | . . . Pick Up 6 | . 3 3 Fast Attach 9 | . 9 . Attach 7 | . 2 5 Detach . | . . . Swap 3 | . 1 2 Drop 8 | . 7 1 Fire 52 | . 15 37 Melee . | . . . Ram . | . . . Kick . | . . . Crush 1 | . 1 . Escape Stasis . | . . . Rewire . | . . . Trap . | . . . Miscellaneous . | . . . Route ------- -11/Scrapyard -10/Materials (discovered 4 exits: [*Mat] / [*Min x2] / [*Sub]) -10/Subcaves (discovered 1 exit: [*Mat]) History --------- Turn | Location | Event 1 | -11/Scrapyard | Discovered new exit (range 0) 1 | -11/Scrapyard | Entered Materials 133 | -10/Materials | Discovered new exit (range 7) 240 | -10/Materials | Discovered new exit (range 16) 300 | -10/Materials | Discovered new exit (range 7) 314 | -10/Materials | Build established: Mutant 790 | -10/Materials | Discovered new exit (range 3) 809 | -10/Materials | Entered Subcaves 1048 | -10/Subcaves | Discovered new exit (range 15) 1142 | -10/Subcaves | Shifting Twisted Machinery released Battle Cannon 1151 | -10/Subcaves | Shifting Twisted Machinery released Sub. Power Source 1498 | -10/Subcaves | Disturbed a concealed Subdweller 1682 | -10/Subcaves | Core integrity fell below 50% 2019 | -10/Subcaves | Disturbed a concealed Subdweller 2019 | -10/Subcaves | Disturbed a concealed Subdweller 2036 | -10/Subcaves | Core integrity fell below 20% 2053 | -10/Subcaves | Destroyed by S-10 Pest with Light Assault Rifle Last Messages --------------- 02014_ Found Mak. Hacking Suite. 02014_ Found 38 Matter. 02015_ Searching scrap... 02015_ Found Sub. Machine Gun. 02015_ Found 54 Matter. 02019_ B0-LZU(R) angrily emerges from the Twisted Machinery. 02019_ EM Shotgun destroyed. 02019_ Slug penetrates Twisted Machinery. 02019_ OM-BZ3(R) angrily emerges from the Twisted Machinery. 02020_ Acquired 6 matter. 02021_ Imp. Ion Engine destroyed. 02022_ Acquired 5 matter. 02022_ B0-LZU(R) destroyed. 02023_ Acquired 10 matter. 02028_ OM-BZ3(R) destroyed. 02029_ Acquired 10 matter. 02047_ S-10 Pest knocked back. 02050_ S-10 Pest destroyed. Map ----- +----------------------------------------------------+ | ?????????????????????????????????????????????????? | | ?????????????????????????????????????????????????? | | ?????????????????????????????????????????????????? | | ?????????????????????????????????????????????????? | | ?????????????????????????????????????????????????? | | ?????????????????????????????????????????????????? | | ?????????????????????????????????????????????????? | | ?????????????????????????????????????????????????? | | ?????????????????????????????????????????????????? | | ?????????????????????????????????????????????????? | | ???????????????????????????????????????????????### | | ??????????????????????????????????????????????## # | | ??????????????????????????????????????????????# # | | ??????????????????????????????????????????????# # | | ??????????????????????????????????????????????# # | | ????????????????????????????????????????###??## # | | ???????????????????????????????????????## #### | | ??????????????????????????????????????## | | ??????????????????????????????????????# | | ??????????????????????????????????????## | | ???????????????????????????????????????# | | ???????????????????????####????????????### | | ????????????????????#### ##???#########?# ## | | ????????????????????# #??## !!&&& #?## ## | | ?????????????????????# ##?# ##%# #??# | | ??????????????????????# @ ###[##&"## #??## | | ??????????????????????###; %s &[%%![%# #???# | | ????????????????# #### s *=#<%[<# ##?## | | ????????????????# % # = #""## ### % | | ???????????????# ### ### #### ## | | ????????????? ?## # ## | | ????????????? ## ###### #?# | | ?????????????? ## ??# ???????# ## #? | | ?????????????????## ???# ??????### # #?# | | ???????????????????????# ###??????# #?# | | ??????????????????????? #????????## ## ? | | ?????????????????????? #????????? ## | | ????????????????????? #???????? #### # # | | ????????????????????? #???????? ???##### | | ???????????????????? #??????? ????????# | | ??????????????????? #?????? ?????????# | | ????????????????????? ? #??????? ?????????? | | ????????????????????????? #??????? ? ?????????? | | ??????????????????????????????????? ?????????? | | ??????????????????????????????????? ? ?????????? | | ?????????????????????????????????????????????????? | | ?????????????????????????????????????????????????? | | ?????????????????????????????????????????????????? | | ?????????????????????????????????????????????????? | | ?????????????????????????????????????????????????? | +----------------------------------------------------+ Best States ------------- Heat Dissipation 25 Energy Generation 12 Energy Capacity 265 Matter Stores 300 Matter Capacity 300 Sight Range 16 Terrain Scan Density 10 Evasion (%) 55 Targeting Accuracy 5 Recoil Reduction 2 Item Schematics ----------------- None Robot Schematics ------------------ None Fabricated ------------ Nothing Alien Tech Used ----------------- None Achievements -------------- None Challenges ------------ None Game ------ Seed SwordHeavyScrap Manual? 0 Play Time 00:08:56 Cumulative 91.7 hours Start 2024.08.07 @ 16:46:09 End 2024.08.07 @ 16:56:42 Sessions 1 Manual Loads 0 Difficulty Rogue Special Mode None Game No. 159 Rogue 158 Adventurer 1 Explorer 0 Win Type - Total 0 Types 0/0/0/0/0/0/0/0/0 Lore% 53 Gallery% 59 Achievement% 47 Wizard Run 0 Options --------- Layout 1 ASCII 0 Keyboard 0 Movement Mouse Keybinds 0 Fullscreen 2 Font 20/SmallcapsGlow Map View 54x42 Zoom Use 0% Tactical HUD 1 Map Filters NONE Filters NONE Steam 0 RUN: 7e8e48fc-0ffc-470a-8acb-700656de5bab